fUST/lending_fUST_20250615
["ID","MTS","AMOUNT","RATE_DAILY","PERIOD"]
[365842308,1749953442698,-460.0,0.00022739,4]
[365842310,1749953442708,-845.25843836,0.00022739,7]
[365842312,1749953442717,-460.0,0.00022739,4]
[365842314,1749953442726,-500.0,0.00022739,4]
[365842316,1749953442736,-511.12,0.00022739,4]
[365842318,1749953442745,-460.0,0.00022739,4]
[365842320,1749953442755,-999.84,0.00022739,4]
[365842322,1749953442764,-464.68,0.00022739,4]
[365842324,1749953442774,-460.0,0.00022739,4]
[365842326,1749953442783,-460.0,0.00022739,4]
[365842328,1749953442792,-460.0,0.00022739,4]
[365842330,1749953442802,-460.0,0.00022739,4]
[365842332,1749953442811,-460.0,0.00022739,4]
[365842334,1749953442820,-486.97,0.00022739,4]
[365842335,1749953442829,-460.0,0.00022739,4]
[365842336,1749953442839,-1441.02,0.00022739,4]
[365842337,1749953442848,-460.0,0.00022739,4]
[365842338,1749953442858,-460.0,0.00022739,4]
[365842339,1749953442867,-2913.08,0.00022739,4]
[365842340,1749953442877,-460.0,0.00022739,4]
[365842341,1749953442886,-460.0,0.00022739,4]
[365842342,1749953442895,-460.0,0.00022739,4]
[365842343,1749953442905,-460.0,0.00022739,4]
[365842344,1749953442914,-740.12,0.00022739,4]
[365842345,1749953442925,-460.0,0.00022739,4]
[365842346,1749953442935,-460.0,0.00022739,4]
[365842347,1749953442945,-587.65,0.00022739,4]
[365842348,1749953442955,-151.0,0.00022739,7]
[365842349,1749953442964,-460.0,0.00022739,4]
[365842350,1749953442974,-460.0,0.00022739,4]
[365842351,1749953442983,-460.0,0.00022739,4]
[365842352,1749953442994,-460.0,0.00022739,4]
[365842353,1749953443003,-1576.48,0.00022739,4]
[365842354,1749953443012,-460.0,0.00022739,4]
[365842355,1749953443021,-2285.9,0.00022739,4]
[365842356,1749953443031,-472.38,0.00022739,4]
[365842357,1749953443041,-1072.81,0.00022739,4]
[365842358,1749953443051,-460.0,0.00022739,4]
[365842360,1749953443061,-460.0,0.00022739,4]
[365842363,1749953443071,-460.0,0.00022739,4]
[365842364,1749953443082,-2728.97,0.00022739,4]
[365842366,1749953443091,-460.0,0.00022739,4]
[365842367,1749953443102,-2389.94,0.00022739,4]
[365842369,1749953443111,-460.0,0.00022739,4]
[365842371,1749953443122,-460.0,0.00022739,4]
[365842373,1749953443132,-460.0,0.00022739,4]
[365842375,1749953443141,-151.0,0.00022739,7]
[365842377,1749953443151,-460.0,0.00022739,4]
[365842379,1749953443161,-3155.5,0.00022739,4]
[365842381,1749953443170,-673.79,0.00022739,4]
[365842383,1749953443180,-460.0,0.00022739,4]
[365842385,1749953443189,-517.41,0.00022739,4]
[365842387,1749953443199,-786.53,0.00022739,4]
[365842389,1749953443209,-460.0,0.00022739,4]
[365842391,1749953443218,-460.0,0.00022739,4]
[365842393,1749953443228,-329.0,0.00022807,2]
[365842395,1749953443238,-420.0,0.00022841,2]
[365842397,1749953443248,-1190.91045406,0.00022866,8]
[365842399,1749953443257,-168.0,0.00022878,2]
[365842401,1749953443267,-35573.29310203,0.00022923,2]
[365842403,1749953443276,-229.82479369,0.00022934,2]
[365842405,1749953443286,-160.0,0.00022937,2]
[365842407,1749953443295,-424.40141186,0.00022937,2]
[365842409,1749953443306,-845.10789306,0.00022937,2]
[365842411,1749953443318,-160.0,0.00022937,2]
[365842413,1749953443328,-160.0,0.00022937,2]
[365842415,1749953443338,-160.0,0.00022937,2]
[365842417,1749953443347,-160.0,0.00022937,2]
[365842419,1749953443358,-835.41710878,0.00022937,2]
[365842421,1749953443367,-151.0,0.00022945,7]
[365842423,1749953443378,-213.28201367,0.00022945,3]
[365842425,1749953443389,-6893.14279359,0.00022965,2]
[365842427,1749953443399,-52788.78593847,0.0002299,2]
[365842429,1749953443408,-151.0,0.0002299,7]
[365842431,1749953443418,-151.0,0.0002299,7]
[365842433,1749953443427,-151.0,0.0002299,7]
[365842435,1749953443438,-1197.473305,0.0002299,7]
[365842437,1749953443447,-1197.473305,0.0002299,7]
[365842439,1749953443457,-151.0,0.0002299,7]
[365842441,1749953443466,-158.362821,0.0002299,7]
[365842443,1749953443476,-151.0,0.0002299,7]
[365842445,1749953443487,-161.957918,0.0002299,7]
[365842447,1749953443497,-158.385467,0.0002299,7]
[365842449,1749953443507,-158.385467,0.0002299,7]
[365842451,1749953443516,-151.0,0.0002299,7]
[365842453,1749953443526,-449.780606,0.0002299,7]
[365842456,1749953443536,-449.780606,0.0002299,7]
[365842458,1749953443546,-151.0,0.0002299,7]
[365842459,1749953443555,-151.0,0.0002299,7]
[365842462,1749953443564,-225.655631,0.0002299,7]
[365842464,1749953443574,-2653.80712984,0.0002299,2]
[365842466,1749953443583,-151.0,0.0002299,7]
[365842468,1749953443592,-151.0,0.0002299,7]
[365842470,1749953443601,-261.166145,0.0002299,7]
[365842472,1749953443610,-151.0,0.0002299,7]
[365842474,1749953443620,-155.0,0.0002299,2]
[365842476,1749953443630,-215.0738,0.00022996,2]
[365842478,1749953443639,-14258.37332198,0.00023,20]
[365842480,1749953443649,-819.48,0.00023,7]
[365842482,1749953443659,-151.0,0.00023,7]
[365842484,1749953443669,-151.0,0.00023,7]
[365842486,1749953443678,-414.942635,0.00023,2]
[365842488,1749953443688,-414.942635,0.00023,2]
[365842490,1749953443697,-15662.91672521,0.00023,2]
[365842492,1749953443707,-160.0,0.00023,3]
[365842494,1749953443716,-33814.3118441,0.00023,2]
[365842497,1749953443726,-160.526327,0.00023,7]
[365842499,1749953443735,-160.526327,0.00023,7]
[365842501,1749953443746,-289.39052,0.00023,7]
[365842503,1749953443755,-289.39052,0.00023,7]
[365842505,1749953443765,-1062.039609,0.00023,7]
[365842507,1749953443774,-1062.039609,0.00023,7]
[365842509,1749953443783,-449.780606,0.00023,7]
[365842511,1749953443793,-449.780606,0.00023,7]
[365842513,1749953443803,-151.0,0.00023,7]
[365842515,1749953443812,-151.0,0.00023,7]
[365842517,1749953443822,-500.13224194,0.00023,2]
[365842519,1749953443831,-151.0,0.00023,7]
[365842521,1749953443841,-151.0,0.00023,10]
[365842523,1749953443850,-151.0,0.00023,7]
[365842525,1749953443859,-639.0,0.00023,2]
[365842527,1749953443869,-1470.74716362,0.00023,2]
[365842529,1749953443878,-151.0,0.00023,7]
[365842530,1749953443888,-1190.91045406,0.00023003,8]
[365842532,1749953443897,-800.0,0.00023012,2]
[365842534,1749953443907,-1526.25,0.00023012,4]
[365842536,1749953443916,-478.25875068,0.00023012,4]
[365842538,1749953443926,-3283.93,0.00023012,4]
[365842540,1749953443937,-1450.74,0.00023012,4]
[365842542,1749953443946,-460.0,0.00023012,4]
[365842544,1749953443956,-151.0,0.00023013,7]
[365842546,1749953443965,-151.0,0.00023013,7]
[365842548,1749953443975,-151.0,0.00023013,7]
[365842550,1749953443984,-216.946619,0.00023013,7]
[365842552,1749953443993,-216.946619,0.00023013,7]
[365842554,1749953444002,-183.512585,0.00023013,7]
[365842556,1749953444011,-154.173015,0.00023013,7]
[365842558,1749953444021,-154.173015,0.00023013,7]
[365842573,1749953444149,-151.0,0.00023013,7]
[365842575,1749953444159,-151.0,0.00023013,7]
[365842577,1749953444170,-151.0,0.00023013,7]
[365842579,1749953444180,-151.0,0.00023013,7]
[365842581,1749953444190,-1197.473305,0.00023013,7]
[365842583,1749953444199,-1197.473305,0.00023013,7]
[365842585,1749953444209,-151.0,0.00023013,7]
[365842587,1749953444218,-151.0,0.00023013,7]
[365842589,1749953444228,-158.385467,0.00023013,7]
[365842591,1749953444240,-158.385467,0.00023013,7]
[365842593,1749953444249,-151.0,0.00023013,7]
[365842595,1749953444259,-590.55,0.00023013,4]
[365842597,1749953444268,-151.229648,0.00023013,7]
[365842599,1749953444278,-151.0,0.00023013,7]
[365842601,1749953444287,-460.0,0.00023013,4]
[365842603,1749953444297,-151.0,0.00023013,7]
[365842605,1749953444307,-460.0,0.00023013,4]
[365842607,1749953444320,-297.69300257,0.00023013,4]
[365842609,1749953444329,-839.43,0.00023013,4]
[365842611,1749953444339,-459.00659993,0.00023013,4]
[365842613,1749953444348,-152.652882,0.00023013,7]
[365842615,1749953444359,-302.64132522,0.00023013,4]
[365842617,1749953444368,-676.22,0.00023013,4]
[365842619,1749953444377,-460.0,0.00023013,4]
[365842622,1749953444388,-390.67674152,0.00023013,4]
[365842623,1749953444397,-460.0,0.00023013,4]
[365842625,1749953444407,-460.0,0.00023013,4]
[365842628,1749953444416,-578.78029929,0.00023013,4]
[365842630,1749953444426,-684.55,0.00023013,2]
[365842632,1749953444435,-460.0,0.00023013,4]
[365842634,1749953444445,-500.3466422,0.00023013,4]
[365842636,1749953444454,-460.0,0.00023013,4]
[365842638,1749953444463,-501.6,0.00023013,4]
[365842640,1749953444472,-620.54,0.00023013,4]
[365842642,1749953444481,-384.23687331,0.00023013,4]
[365842644,1749953444491,-675.91,0.00023013,4]
[365842646,1749953444501,-460.0,0.00023013,4]
[365842647,1749953444509,-460.0,0.00023013,4]
[365842649,1749953444519,-2170.83,0.00023013,4]
[365842651,1749953444528,-460.0,0.00023013,4]
[365842653,1749953444537,-460.0,0.00023013,4]
[365842656,1749953444547,-151.0,0.00023013,7]
[365842658,1749953444556,-2420.66,0.00023013,4]
[365842660,1749953444566,-2453.69,0.00023013,4]
[365842662,1749953444576,-349.14912359,0.00023013,4]
[365842664,1749953444585,-910.51,0.00023013,4]
[365842666,1749953444595,-683.93,0.00023013,4]
[365842668,1749953444604,-151.0,0.00023013,7]
[365842670,1749953444613,-793.09,0.00023013,4]
[365842672,1749953444623,-460.0,0.00023013,4]
[365842674,1749953444632,-460.0,0.00023013,4]
[365842676,1749953444642,-1056.35,0.00023013,4]
[365842678,1749953444651,-151.0,0.00023013,7]
[365842680,1749953444661,-627.67,0.00023013,4]
[365842682,1749953444670,-460.0,0.00023013,4]
[365842684,1749953444679,-460.0,0.00023013,4]
[365842686,1749953444689,-1228.45,0.00023013,4]
[365842688,1749953444698,-460.0,0.00023013,4]
[365842690,1749953444707,-460.0,0.00023013,4]
[365842692,1749953444716,-460.0,0.00023013,4]
[365842694,1749953444725,-460.0,0.00023013,4]
[365842696,1749953444734,-566.9,0.00023013,4]
[365842698,1749953444745,-460.0,0.00023013,4]
[365842699,1749953444754,-460.0,0.00023013,4]
[365842701,1749953444763,-500.0,0.00023013,4]
[365842703,1749953444773,-511.12,0.00023013,4]
[365842706,1749953444782,-460.0,0.00023013,4]
[365842708,1749953444792,-999.84,0.00023013,4]
[365842709,1749953444801,-464.68,0.00023013,4]
[365842711,1749953444810,-460.0,0.00023013,4]
[365842713,1749953444819,-460.0,0.00023013,4]
[365842715,1749953444828,-357.52198482,0.00023013,4]
[365842717,1749953444837,-460.0,0.00023013,4]
[365842719,1749953444846,-548.34486399,0.00023013,4]
[365842721,1749953444855,-486.97,0.00023013,4]
[365842723,1749953444865,-460.0,0.00023013,4]
[365842725,1749953444875,-592.96385426,0.00023013,4]
[365842727,1749953444884,-1441.02,0.00023013,4]
[365842729,1749953444893,-460.0,0.00023013,4]
[365842731,1749953444903,-2913.08,0.00023013,4]
[365842733,1749953444912,-460.0,0.00023013,4]
[365842735,1749953444922,-460.0,0.00023013,4]
[365842737,1749953444933,-334.04047114,0.00023013,4]
[365842739,1749953444943,-460.0,0.00023013,4]
[365842742,1749953444953,-740.12,0.00023013,4]
[365842744,1749953444964,-385.9429631,0.00023013,4]
[365842745,1749953444973,-290.05371385,0.00023013,4]
[365842748,1749953444989,-169.94628615,0.00023013,4]
[365842750,1749953444999,-587.65,0.00023013,4]
[365842752,1749953445010,-151.0,0.00023013,7]
[365842754,1749953445020,-460.0,0.00023013,4]
[365842756,1749953445029,-460.0,0.00023013,4]
[365842758,1749953445038,-460.0,0.00023013,4]
[365842760,1749953445047,-460.0,0.00023013,4]
[365842762,1749953445056,-1576.48,0.00023013,4]
[365842764,1749953445065,-460.0,0.00023013,4]
[365842766,1749953445075,-2285.9,0.00023013,4]
[365842768,1749953445084,-472.38,0.00023013,4]
[365842770,1749953445094,-1072.81,0.00023013,4]
[365842772,1749953445103,-460.0,0.00023013,4]
[365842774,1749953445113,-460.0,0.00023013,4]
[365842776,1749953445122,-460.0,0.00023013,4]
[365842778,1749953445132,-2728.97,0.00023013,4]
[365842779,1749953445141,-460.0,0.00023013,4]
[365842781,1749953445151,-2389.94,0.00023013,4]
[365842783,1749953445160,-460.0,0.00023013,4]
[365842785,1749953445170,-460.0,0.00023013,4]
[365842787,1749953445179,-441.33682136,0.00023013,4]
[365842789,1749953445189,-320.74166943,0.00023013,4]
[365842791,1749953445199,-151.0,0.00023013,7]
[365842793,1749953445208,-3155.5,0.00023013,4]
[365842795,1749953445217,-673.79,0.00023013,4]
[365842797,1749953445227,-460.0,0.00023013,4]
[365842799,1749953445236,-517.41,0.00023013,4]
[365842801,1749953445246,-786.53,0.00023013,4]
[365842803,1749953445256,-460.0,0.00023013,4]
[365842805,1749953445265,-460.0,0.00023013,4]
[365842807,1749953445275,-151.0,0.00023019,7]
[365842809,1749953445285,-800.0,0.00023037,2]
[365842811,1749953445295,-151.0,0.0002304,7]
[365842813,1749953445304,-414.942635,0.0002304,2]
[365842815,1749953445317,-414.942635,0.0002304,2]
[365842817,1749953445327,-160.526327,0.0002304,7]
[365842819,1749953445336,-160.526327,0.0002304,7]
[365842821,1749953445345,-289.39052,0.0002304,7]
[365842823,1749953445355,-289.39052,0.0002304,7]
[365842825,1749953445365,-1062.039609,0.0002304,7]
[365842827,1749953445374,-1062.039609,0.0002304,7]
[365842829,1749953445385,-600.0,0.0002304,2]
[365842832,1749953445396,-9000.0,0.00023046,2]
[365842834,1749953445406,-153.254637,0.00023046,7]
[365842836,1749953445416,-157.056261,0.00023046,7]
[365842837,1749953445425,-395.502318,0.00023046,7]
[365842840,1749953445435,-395.502318,0.00023046,7]
[365842841,1749953445445,-151.0,0.00023054,7]
[365842843,1749953445455,-151.0,0.00023054,7]
[365842845,1749953445466,-151.0,0.00023054,7]
[365842846,1749953445476,-151.0,0.00023054,7]
[365842847,1749953445485,-240.409685,0.00023054,7]
[365842848,1749953445496,-449.780606,0.00023054,7]
[365842849,1749953445505,-449.780606,0.00023054,7]
[365842850,1749953445515,-151.0,0.00023054,7]
[365842851,1749953445526,-151.0,0.00023054,7]
[365842852,1749953445535,-151.0,0.00023054,7]
[365842853,1749953445546,-151.0,0.00023054,7]
[365842855,1749953445555,-771.25,0.0002306,4]
[365842857,1749953445565,-1500.0,0.00023068,2]
[365842858,1749953445575,-151.0,0.00023069,7]
[365842860,1749953445584,-1197.473305,0.00023069,7]
[365842862,1749953445594,-1197.473305,0.00023069,7]
[365842864,1749953445604,-151.0,0.00023069,7]
[365842867,1749953445614,-151.0,0.00023069,7]
[365842868,1749953445624,-502.43882644,0.00023073,2]
[365842871,1749953445634,-508.32540418,0.00023073,2]
[365842872,1749953445643,-500.0,0.00023073,2]
[365842874,1749953445652,-500.0,0.00023073,2]
[365842877,1749953445663,-500.0,0.00023073,2]
[365842879,1749953445674,-500.0,0.00023073,2]
[365842881,1749953445683,-500.0,0.00023073,2]
[365842883,1749953445692,-258.77063797,0.00023073,2]
[365842885,1749953445702,-500.0,0.00023073,2]
[365842887,1749953445711,-500.0,0.00023073,2]
[365842889,1749953445720,-500.0,0.00023073,2]
[365842891,1749953445730,-500.0,0.00023073,2]
[365842893,1749953445739,-500.0,0.00023073,2]
[365842895,1749953445749,-500.0,0.00023073,2]
[365842897,1749953445759,-500.4947533,0.00023073,2]
[365842899,1749953445768,-500.0,0.00023073,2]
[365842901,1749953445778,-500.0,0.00023073,2]
[365842903,1749953445787,-500.0,0.00023073,2]
[365842905,1749953445797,-500.0,0.00023073,2]
[365842907,1749953445807,-500.0,0.00023073,2]
[365842909,1749953445816,-500.0,0.00023073,2]
[365842911,1749953445826,-500.0,0.00023073,2]
[365842913,1749953445835,-500.0,0.00023073,2]
[365842915,1749953445845,-500.0,0.00023073,2]
[365842917,1749953445855,-500.0,0.00023073,2]
[365842920,1749953445864,-500.0,0.00023073,2]
[365842923,1749953445873,-500.0,0.00023073,2]
[365842926,1749953445883,-420.74611963,0.00023073,2]
[365842929,1749953445893,-500.0,0.00023073,2]
[365842932,1749953445902,-500.0,0.00023073,2]
[365842935,1749953445912,-500.0,0.00023073,2]
[365842938,1749953445921,-500.0,0.00023073,2]
[365842940,1749953445930,-500.0,0.00023073,2]
[365842942,1749953445939,-500.0,0.00023073,2]
[365842944,1749953445949,-600.0,0.00023073,2]
[365842946,1749953445958,-151.0,0.00023073,7]
[365842947,1749953445967,-151.0,0.00023073,7]
[365842949,1749953445977,-21557.57202375,0.00023093,2]
[365842950,1749953445986,-151.0,0.00023093,7]
[365842951,1749953445996,-151.0,0.00023093,7]
[365842953,1749953446005,-306.617606,0.00023093,7]
[365842955,1749953446015,-306.617606,0.00023093,7]
[365842957,1749953446024,-151.982218,0.00023093,7]
[365842960,1749953446033,-152.130659,0.00023093,7]
[365842963,1749953446043,-151.0,0.00023093,7]
[365842965,1749953446052,-165.105882,0.00023093,7]
[365842968,1749953446062,-165.105882,0.00023093,7]
[365842971,1749953446072,-151.0,0.00023093,7]
[365842976,1749953446082,-151.0,0.00023093,7]
[365842979,1749953446092,-151.0,0.00023093,7]
[365842982,1749953446101,-9291.61710204,0.000231,2]
[365842985,1749953446110,-16969.56179674,0.000231,2]
[365842989,1749953446120,-1962.02,0.000231,7]
[365842992,1749953446129,-89389.22,0.000231,7]
[365842996,1749953446139,-151.0,0.000231,7]
[365843000,1749953446148,-151.0,0.000231,7]
[365843003,1749953446158,-151.0,0.000231,7]
[365843008,1749953446167,-395.502318,0.000231,7]
[365843011,1749953446177,-395.502318,0.000231,7]
[365843014,1749953446187,-151.0,0.000231,7]
[365843017,1749953446196,-151.0,0.000231,7]
[365843020,1749953446205,-151.0,0.000231,7]
[365843023,1749953446215,-216.946619,0.00023104,7]
[365843026,1749953446225,-216.946619,0.00023104,7]
[365843029,1749953446234,-154.173015,0.00023104,7]
[365843032,1749953446245,-154.173015,0.00023104,7]
[365843035,1749953446255,-6005.12,0.00023118,2]
[365843038,1749953446264,-313.737995,0.00023118,7]
[365843041,1749953446273,-151.0,0.00023118,7]
[365843044,1749953446282,-153.148426,0.00023118,7]
[365843047,1749953446292,-414.942635,0.00023118,2]
[365843050,1749953446301,-414.942635,0.00023118,2]
[365843053,1749953446313,-160.526327,0.00023118,7]
[365843056,1749953446322,-160.526327,0.00023118,7]
[365843059,1749953446331,-289.39052,0.00023118,7]
[365843062,1749953446340,-289.39052,0.00023118,7]
[365843065,1749953446351,-1062.039609,0.00023118,7]
[365843068,1749953446360,-1062.039609,0.00023118,7]
[365843071,1749953446369,-151.0,0.00023118,7]
[365843074,1749953446378,-151.0,0.00023118,7]
[365843077,1749953446389,-182.788416,0.00023118,7]
[365843080,1749953446399,-1190.91045406,0.00023141,8]
[365843083,1749953446408,-151.0,0.0002315,7]
[365843086,1749953446417,-151.0,0.0002315,7]
[365843089,1749953446429,-224.0,0.0002315,7]
[365843092,1749953446439,-158.385467,0.0002315,7]
[365843095,1749953446449,-158.385467,0.0002315,7]
[365843097,1749953446458,-165.105882,0.0002315,7]
[365843099,1749953446468,-165.105882,0.0002315,7]
[365843101,1749953446478,-171.84232739,0.00023151,2]
[365843103,1749953446487,-306.617606,0.00023152,7]
[365843105,1749953446496,-306.617606,0.00023152,7]
[365843107,1749953446505,-151.0,0.00023152,7]
[365843109,1749953446515,-151.563322,0.00023155,7]
[365843114,1749953446554,-151.0,0.00023155,7]
[365843116,1749953446563,-151.0,0.00023155,7]
[365843118,1749953446572,-151.0,0.00023155,7]
[365843120,1749953446581,-414.942635,0.00023155,2]
[365843122,1749953446592,-414.942635,0.00023155,2]
[365843124,1749953446601,-151.0,0.00023155,7]
[365843126,1749953446611,-240.409685,0.00023155,7]
[365843128,1749953446620,-160.526327,0.00023155,7]
[365843130,1749953446629,-160.526327,0.00023155,7]
[365843132,1749953446638,-289.39052,0.00023155,7]
[365843134,1749953446647,-289.39052,0.00023155,7]
[365843136,1749953446656,-1197.473305,0.00023155,7]
[365843138,1749953446665,-1197.473305,0.00023155,7]
[365843140,1749953446674,-161.17878,0.00023155,7]
[365843142,1749953446684,-151.0,0.00023155,7]
[365843144,1749953446692,-1062.039609,0.00023155,7]
[365843146,1749953446702,-1062.039609,0.00023155,7]
[365843148,1749953446711,-449.780606,0.00023155,7]
[365843150,1749953446720,-449.780606,0.00023155,7]
[365843152,1749953446730,-151.0,0.00023155,7]
[365843155,1749953446740,-151.0,0.00023155,7]
[365843157,1749953446749,-1530.3962487,0.00023155,2]
[365843158,1749953446759,-151.0,0.00023155,7]
[365843161,1749953446769,-155.530523,0.00023155,7]
[365843163,1749953446778,-771.25,0.0002316,7]
[365843165,1749953446787,-158.15189512,0.00023167,2]
[365843167,1749953446798,-151.0,0.00023173,7]
[365843169,1749953446807,-151.0,0.00023173,7]
[365843171,1749953446816,-158.385467,0.00023173,7]
[365843173,1749953446826,-158.385467,0.00023173,7]
[365843175,1749953446835,-324.0,0.00023194,2]
[365843177,1749953446844,-169.0,0.00023196,2]
[365843179,1749953446853,-200.0,0.00023199,2]
[365843181,1749953446862,-24112.60626682,0.000232,7]
[365843183,1749953446872,-151.0,0.000232,7]
[365843185,1749953446881,-151.0,0.000232,7]
[365843187,1749953446890,-154.363452,0.000232,7]
[365843189,1749953446899,-414.942635,0.000232,2]
[365843191,1749953446909,-414.942635,0.000232,2]
[365843193,1749953446918,-151.0,0.000232,7]
[365843195,1749953446928,-151.0,0.000232,7]
[365843197,1749953446937,-151.0,0.000232,7]
[365843199,1749953446946,-240.409685,0.000232,7]
[365843201,1749953446955,-160.526327,0.000232,7]
[365843203,1749953446964,-160.526327,0.000232,7]
[365843205,1749953446973,-289.39052,0.000232,7]
[365843207,1749953446982,-289.39052,0.000232,7]
[365843209,1749953446992,-1197.473305,0.000232,7]
[365843211,1749953447001,-1197.473305,0.000232,7]
[365843213,1749953447010,-151.0,0.000232,7]
[365843215,1749953447019,-1500.0,0.000232,14]
[365843216,1749953447028,-1500.0,0.000232,14]
[365843218,1749953447038,-1500.0,0.000232,14]
[365843220,1749953447048,-1500.0,0.000232,14]
[365843222,1749953447058,-1500.0,0.000232,14]
[365843224,1749953447068,-1500.0,0.000232,14]
[365843226,1749953447079,-1500.0,0.000232,14]
[365843229,1749953447090,-1500.0,0.000232,14]
[365843231,1749953447103,-1500.0,0.000232,14]
[365843232,1749953447115,-1500.0,0.000232,14]
[365843235,1749953447127,-1500.0,0.000232,14]
[365843237,1749953447140,-1500.0,0.000232,14]
[365843238,1749953447152,-1500.0,0.000232,14]
[365843240,1749953447163,-1500.0,0.000232,14]
[365843242,1749953447174,-1500.0,0.000232,14]
[365843244,1749953447185,-1500.0,0.000232,14]
[365843246,1749953447199,-1500.0,0.000232,14]
[365843248,1749953447212,-1500.0,0.000232,14]
[365843250,1749953447224,-1500.0,0.000232,14]
[365843252,1749953447236,-1500.0,0.000232,14]
[365843254,1749953447252,-1500.0,0.000232,14]
[365843256,1749953447263,-1500.0,0.000232,14]
[365843258,1749953447274,-1500.0,0.000232,14]
[365843260,1749953447288,-1500.0,0.000232,14]
[365843263,1749953447300,-1500.0,0.000232,14]
[365843265,1749953447313,-1500.0,0.000232,14]
[365843267,1749953447325,-1500.0,0.000232,14]
[365843269,1749953447336,-1500.0,0.000232,14]
[365843271,1749953447347,-1500.0,0.000232,14]
[365843273,1749953447358,-1500.0,0.000232,14]
[365843274,1749953447368,-1500.0,0.000232,14]
[365843276,1749953447380,-1500.0,0.000232,14]
[365843279,1749953447390,-1500.0,0.000232,14]
[365843281,1749953447400,-1500.0,0.000232,14]
[365843282,1749953447410,-1500.0,0.000232,14]
[365843284,1749953447420,-1211.065445,0.000232,14]
[365843287,1749953447430,-158.385467,0.000232,7]
[365843289,1749953447440,-158.385467,0.000232,7]
[365843291,1749953447450,-1062.039609,0.000232,7]
[365843293,1749953447460,-1062.039609,0.000232,7]
[365843295,1749953447470,-449.780606,0.000232,7]
[365843297,1749953447480,-449.780606,0.000232,7]
[365843299,1749953447490,-151.0,0.000232,7]
[365843301,1749953447504,-151.0,0.000232,7]
[365843303,1749953447514,-151.0,0.000232,7]
[365843305,1749953447524,-243.07218973,0.000232,7]
[365843306,1749953447534,-151.0,0.000232,7]
[365843307,1749953447544,-395.502318,0.000232,7]
[365843308,1749953447554,-395.502318,0.000232,7]
[365843310,1749953447564,-153.21825,0.000232,7]
[365843312,1749953447574,-151.0,0.000232,7]
[365843313,1749953447583,-151.0,0.000232,7]
[365843314,1749953447593,-151.0,0.000232,7]
[365843315,1749953447602,-168.36185873,0.0002325,2]
[365843316,1749953447612,-771.25,0.0002326,6]
[365843317,1749953447621,-165.105882,0.0002326,7]
[365843318,1749953447630,-165.105882,0.0002326,7]
[365843319,1749953447639,-307.8453484,0.0002326,2]
[365843320,1749953447649,-153.6869386,0.0002326,2]
[365843321,1749953447659,-1500.0,0.00023268,2]
[365843322,1749953447669,-151.0,0.00023272,7]
[365843323,1749953447678,-1190.91045406,0.00023279,8]
[365843324,1749953447688,-600.0,0.0002328,2]
[365843325,1749953447698,-306.617606,0.00023286,7]
[365843326,1749953447707,-306.617606,0.00023286,7]
[365843327,1749953447717,-151.0,0.00023286,7]